{"text_format":"1","workbook":"xlsx","n_sheets":5,"sheets":["Couverture","Abordabilité des loyers","Budget de l’ensemble","Résidentiel","Non résidentiel"],"not_rendered":{"charts":0,"images":2,"macros":1,"external_links":0,"defined_names":10,"comments":0,"pivot_tables":0},"unopened":[],"bounds":{"document_bytes":16777216,"sheet_cells":100000,"rows_first":2000,"rows_last":500,"rows_between":2000,"halvings":0,"cell_chars":16384,"cell_head_chars":4096},"cells_cut":0,"cells_raw":0,"read":"whole","date_system":"1900"}

{"sheet":"Couverture","index":0,"n_rows":16,"n_cols":11,"rows_kept":16,"cut":false,"hidden":false,"merged":[[3,1,14,10],[15,1,18,10]]}
[]
[]
[null,null,null,null,null,null,null,null,null,"Version ","2018-06-26"]
[null,"Avis de non-responsabilité – Cet outil d’évaluation est présenté par la SCHL à des fins d’illustration et d’estimation générales seulement. Les montants obtenus à l’aide de cet outil sont basés sur les données indiquées ainsi que sur les hypothèses et les estimations faites par celui-ci. Ces projections ne sont pas garanties par la SCHL. Elles ne visent pas à fournir des conseils d’ordre financier ou autre sur un ou des ensembles d’habitation en particulier, de sorte qu'elles ne doivent pas servir à cet effet. Ni la SCHL, ni aucun de ses employés ou conseillers n’assument quelque responsabilité que ce soit quant à l’exactitude des projections figurant dans cet outil ou relativement à tout dommage lié à celles-ci. Personne ne peut faire valoir qu’il a utilisé l’outil d’évaluation ou ses résultats relativement à quelque ensemble d’habitation que ce soit pour obtenir une assurance prêt hypothécaire de la SCHL ou du financement au titre de cette initiative ou de tout autre programme ou initiative de la SCHL. Nous vous encourageons à communiquer avec le conseiller en logement abordable de votre région pour obtenir de l’aide concernant cet outil."]
[]
[]
[]
[]
[]
[]
[]
[]
[]
[]
[]
[null,"Cet outil d’évaluation est protégé par les droits d’auteur et est assujetti aux lois sur les droits de propriété intellectuelle. Les utilisateurs ne sont autorisés à télécharger l’outil d’évaluation que pour s'en servir dans le cadre du Fonds national de co-investissement pour le logement et ne sont pas autorisés à copier, reproduire, modifier ou distribuer l’outil d’évaluation sans obtenir au préalable le consentement écrit de la SCHL. "]

{"sheet":"Abordabilité des loyers","index":1,"n_rows":35,"n_cols":24,"rows_kept":35,"cut":false,"hidden":false,"merged":[[4,10,4,11]]}
["Remarque : Ne remplir que les champs pertinents en JAUNE. "]
[]
[null,"Calcul des loyers pro forma – Portion résidentielle",null,"Distinction des loyers:",null,null,null,null,null,null,"Pour connaître les loyers médians du marché (LMM) de votre région, "]
[null,null,null,"1) Est considéré comme « abordable » un logement dont le loyer est inférieur à 80 % du LMM pour son type de logement.",null,null,null,null,null,null,"cliquez sur le lien suivant :"]
[null,"Province",null,"2) Les autres logements sont considérés comme étant « au prix du marché ». ",null,null,null,null,null,null,"PORTAIL DE L’INFORMATION SUR LE MARCHÉ DE L’HABITATION"]
[null,"Ville",null,"3) À la section Loyer mensuel du sujet, indiquez le prix mensuel moyen des logements.",null,null,null,null,null,null,"Test 1"]
[null,"Zone",null,null,null,null,null,null,null,null,"30 % des logements ont un",null,null,null,null,null,null,"Échelles de loyers abordables en pourcentage du LMM "]
[null,null,null,null,null,null,null,"Mensuel","Annuel",null,"loyer inférieur à 80 % du ",null,null,null,null,null,null,null,"70% to","60% to","50% to","Below"]
[null,null,"Superficie","Nombre de","Loyer mensuel","Loyer Médian du","Loyer abord.","Loyers","Revenu brut",null,"LMM",null,null,null,null,null,null,0.8,0.79,0.69,0.59,0.5]
[null,"Type de logement"," en pi2","logements","du sujet","marché (LMM)","en % du LMM ","pro forma","possible pro forma",null,{"$f":"X22","v":0},"Nbre de logements sous la barre des 80% du LMM",null,null,null,null,null,0.8,0.79,0.69,0.59,0.5]
[null,"Studio – marché",null,null,null,null,null,{"$f":"E11","v":0},{"$f":"$D11*$E11*12","v":0},null,{"$f":"X23","v":0},"% de logements qui passent le test"]
[null,"Studio – abordable",null,null,null,null,{"$f":"IF(F12=0,\"-\",E12/F12)","v":"-"},{"$f":"E12","v":0},{"$f":"$D12*$H12*12","v":0},null,{"$f":"IF(K11>=30%, \"Oui\", \"Non\")","v":"Non"},"Condition atteinte?",null,null,null,null,null,{"$f":"IF(G12=0,0,IF($G$12<=$R$10,D12,0))","v":0},{"$f":"IF(G12=0,0,IF(G12<=$S$10,D12,0))","v":0},{"$f":"IF(G12=0,0,IF(G12<=$T$10,D12,0))","v":0},{"$f":"IF(G12=0,0,IF(G12<=$U$10,D12,0))","v":0},{"$f":"IF(G12=0,0,IF(G12<$V$10,D12,0))","v":0},null,{"$f":"IF(R12=0,\"No\",IF(G12<=80%,\"Yes\", \"No\"))","v":"No"}]
[null,"1 chambre (avec ou sans coin-détente) – marché",null,null,null,null,null,0,{"$f":"$D13*$E13*12","v":0}]
[null,"1 chambre (avec ou sans coin-détente) – abordable",null,null,null,null,{"$f":"IF(F14=0,\"-\",E14/F14)","v":"-"},0,{"$f":"$D14*$H14*12","v":0},null,"Nbre de logements abordables",{"$f":"K10","v":0},null,null,null,null,null,{"$f":"IF(G14=0,0,IF($G$14<=$R$10,D14,0))","v":0},{"$f":"IF(G14=0,0,IF(G14<=$S$10,D14,0))","v":0},{"$f":"IF(G14=0,0,IF(G14<=$T$10,D14,0))","v":0},{"$f":"IF(G14=0,0,IF(G14<=$U$10,D14,0))","v":0},{"$f":"IF(G14=0,0,IF(G14<$V$10,D14,0))","v":0},null,{"$f":"IF(R14=0,\"No\",IF(G14<=80%,\"Yes\", \"No\"))","v":"No"}]
[null,"2 chambres (avec ou sans coin-détente) – marché",null,null,null,null,null,0,{"$f":"$D15*$E15*12","v":0},null,"Nbre de logements au prix du marché",{"$f":"D22-L14","v":0}]
[null,"2 chambres (avec ou sans coin-détente) – abordable",null,null,null,null,{"$f":"IF(F16=0,\"-\",E16/F16)","v":"-"},0,{"$f":"$D16*$H16*12","v":0},null,"Total",{"$f":"SUM(L14:L15)","v":0},null,null,null,null,null,{"$f":"IF(G16=0,0,IF($G$16<=$R$10,D16,0))","v":0},{"$f":"IF(G16=0,0,IF(G16<=$S$10,D16,0))","v":0},{"$f":"IF(G16=0,0,IF(G16<=$T$10,D16,0))","v":0},{"$f":"IF(G16=0,0,IF(G16<=$U$10,D16,0))","v":0},{"$f":"IF(G16=0,0,IF(G16<$V$10,D16,0))","v":0},null,{"$f":"IF(R16=0,\"No\",IF(G16<=80%,\"Yes\", \"No\"))","v":"No"}]
[null,"3 chambres (avec ou sans coin-détente) – marché",null,null,null,null,null,0,{"$f":"$D17*$E17*12","v":0},null,"Test 2"]
[null,"3 chambres (avec ou sans coin-détente) – abordable",null,null,null,null,{"$f":"IF(F18=0,\"-\",E18/F18)","v":"-"},0,{"$f":"$D18*$H18*12","v":0},null,"Loyer moyen des logements abordables en % du LMM moyen",null,null,null,null,null,null,{"$f":"IF(G18=0,0,IF($G$18<=$R$10,D18,0))","v":0},{"$f":"IF(G18=0,0,IF(G18<=$S$10,D18,0))","v":0},{"$f":"IF(G18=0,0,IF(G18<=$T$10,D18,0))","v":0},{"$f":"IF(G18=0,0,IF(G18<=$U$10,D18,0))","v":0},{"$f":"IF(G18=0,0,IF(G18<$V$10,D18,0))","v":0},null,{"$f":"IF(R18=0,\"No\",IF(G18<=80%,\"Yes\", \"No\"))","v":"No"}]
[null,"Autre – (refuge, chambres individuelles, lits)",null,null,null,null,null,0,{"$f":"$D19*$E19*12","v":0},null,"Loyer médian du marché (moyenne pondérée)",null,{"$f":"R25","v":0}]
[null,"Autre – (refuge, chambres individuelles, lits)",null,null,null,null,{"$f":"IF(F20=0,\"-\",E20/F20)","v":"-"},0,{"$f":"$D20*$H20*12","v":0},null,"Projet en cours (moyenne pondérée des loyers abordables)",null,{"$f":"T25","v":0},null,null,null,null,{"$f":"IF(G20=0,0,IF($G$20<=$R$10,D20,0))","v":0},{"$f":"IF(G20=0,0,IF(G20<=$S$10,D20,0))","v":0},{"$f":"IF(G20=0,0,IF(G20<=$T$10,D20,0))","v":0},{"$f":"IF(G20=0,0,IF(G20<=$U$10,D20,0))","v":0},{"$f":"IF(G20=0,0,IF(G20<$V$10,D20,0))","v":0},null,{"$f":"IF(R20=0,\"No\",IF(G20<=80%,\"Yes\", \"No\"))","v":"No"}]
[null,"Superficie totale (résidentielle)",{"$f":"(C11*D11)++(C12*D12)+(C13*D13)+(C14*D14)+(C15*D15)++(C16*D16)+(C17*D17)+(C18*D18)+(C19*D19)+(C20*D20)","v":0},null,null,null,null,null,{"$f":"$D21*$H21*12","v":0},null,"Abordabilité moyenne",null,{"$f":"IF(L14=0,0,M20/M19)","v":0}]
[null,"Nombre total de logements",null,{"$f":"SUM(D11:D21)","v":0},null,null,null,null,{"$f":"SUM(I11:I21)","v":0},null,null,null,null,null,null,null,null,{"$f":"IF(D22=0, 0,(R12+R14+R16+R18++R20)/D22)","v":0},{"$f":"IF(D22=0, 0,(+S12+S14++S16+S18+S20)/D22)","v":0},{"$f":"IF(D22=0, 0,(T12+T14+T16+T18+T20)/D22)","v":0},{"$f":"IF(D22=0, 0,(U12+U14+U16+U18+U20)/D22)","v":0},{"$f":"IF(D22=0, 0,(V12+V14+V16+V18+V20)/D22)","v":0},null,{"$f":"IF(X12=\"Yes\",D12, 0)+IF(X14= \"yes\", D14, 0)+IF(X16=\"yes\",D16,0)+IF(X18=\"yes\",D18,0)+IF(X20=\"yes\",D20,0)","v":0}]
[null,null,null,null,null,null,null,null,null,null,null,null,null,null,null,null,null,null,null,null,null,null,null,{"$f":"IF(D22=0,0,X22/D22)","v":0}]
[]
[null,null,null,null,null,null,null,null,null,null,null,null,null,null,null,null,null,{"$f":"IF(L14=0,0,(($D$12*F12)+($D$14*F14)+($D$16*F16)+($D$18*F18)+($D$20*F20)+($D$21*F21))/L14)","v":0},null,{"$f":"IF(L14=0,0,(($D$12*H12)+($D$14*H14)+($D$16*H16)+($D$18*H18)+($D$20*H20)+($D$21*H21))/L14)","v":0}]
[null,"Comment trouver les loyers médians à partir du portail de l'Analyse de marché de la SCHL"]
[null,"1) Cliquez sur le lien PORTAIL DE L’INFORMATION SUR LE MARCHÉ DE L’HABITATION (cellule K5).",null,null,null,null,null,null,null,null,null,null,null,null,null,null,null,"30% of Units at or below 80% LMM ",null,{"$f":"K12","v":"Non"}]
[null,"2) Sur la page Web, cliquez sur «le Portail de l’information sur le marché de l’habitation».",null,null,null,null,null,null,null,null,null,null,null,null,null,null,null,"31% to 40% of Units below 80% LMM ",null,{"$f":"IF(K11>=30.99%,\"Yes\",\"No\")","v":"No"}]
[null,"3) Sélectionnez Tableaux dans le ruban noir au haut de la page.",null,null,null,null,null,null,null,null,null,null,null,null,null,null,null,"41% to 50% of Units below 80% LMM ",null,{"$f":"IF(K11>=40.99%,\"Yes\",\"No\")","v":"No"}]
[null,"4) À partir de la carte géographique, choisissez la province où est situé votre ensemble.",null,null,null,null,null,null,null,null,null,null,null,null,null,null,null,"51% to 55% of Units below 80% LMM ",null,{"$f":"IF(K11>=50.99%,\"Yes\",\"No\")","v":"No"}]
[null,"5) Choisissez la ville ou la région où est situé votre ensemble. ",null,null,null,null,null,null,null,null,null,null,null,null,null,null,null,"More than 55% of Units below 80% LMM ",null,{"$f":"IF(K11>=54.99%,\"Yes\",\"No\")","v":"No"}]
[null,"6) Choisissez la zone, le quartier ou la subdivision qui s’applique le mieux à votre ensemble."]
[null,"Remarque: Si votre ensemble n’est pas situé dans un secteur de recensement ou si vous ne trouvez pas de données, communiquez avec votre conseiller en logement abordable. "]
[null,"7) À gauche, cliquez sur Marché locatif primaire, puis sur Loyer médian ($). "]
[null,"8) Complétez la section Loyer Médian du Marché."]

{"sheet":"Budget de l’ensemble","index":2,"n_rows":53,"n_cols":13,"rows_kept":53,"cut":false,"hidden":false,"merged":[[8,1,8,6],[9,1,10,6],[15,8,15,11],[14,8,14,11]]}
[null,"RÉSUMÉ"]
[null,"Investissement maximal du FNCIL (en pourcentage des coûts admissibles)"]
[null,null,"Financement total","Contribution"]
[null,null,"jusqu’à","jusqu’à"]
[null,"Coopératives, OSBL, Groupes Autochtones","95 %","40 %"]
[null,"Province/territoire, municipalité","75 %","30 %"]
[null,"À but lucratif","75 %","15 %"]
[null,"Remarque"]
[null,"i) L’investissement du FNCIL est limité à 75 % des coûts pour le volet non résidentiel. "]
[null,"ii) Réparation (renouvellement) d’immeubles existants : l’investissement du FNCIL est limité à 85 % de la valeur d’emprunt (valeur marchande) pour le volet résidentiel"]
[]
[null,"CCD de l’ensemble",{"$f":"IF(C14=0,0,Résidentiel!C12)","v":0}]
[null,"RPC de l’ensemble (totalité de l’investissement du FNCIL)",{"$f":"IF(C16=0,0,C16/E34)","v":0},null,"Par logement"]
[null,"Prêt du FNCIL",{"$f":"Résidentiel!C7","v":0},null,{"$f":"IF(C14=0,0,C14/E23)","v":0}]
[null,"Contribution du FNCIL",{"$f":"Résidentiel!C6","v":0},null,{"$f":"IF(C15=0,0,C15/E23)","v":0}]
[null,"Investissement du FNCIL",{"$f":"SUM(C14:C15)","v":0}]
[]
["Remarque : Ne remplir que les champs pertinents en JAUNE. "]
[null,"Coût total de l’ensemble"]
[null,"Caractéristiques de l’ensemble",null,null,null,null,null,null,"Résidentiel",null,"Non résidentiel","Combiné (vérifier utilisations et sources)"]
[null,"Superficie totale brute (estimée) en pi2",null,null,{"$f":"L21","v":0},null,null,null,null,null,null,{"$f":"SUM(I21:K21)","v":0}]
[null,"Proportion de la superficie totale",null,null,{"$f":"IF(L21=0,0,L22)","v":0},null,null,null,{"$f":"IF(L21=0,0,I21/L21)","v":0},null,{"$f":"IF(L21=0,0,K21/L21)","v":0},{"$f":"SUM(I22:K22)","v":0}]
[null,"Nombre d’unités résidentielles",null,null,{"$f":"'Abordabilité des loyers'!D22","v":0}]
[]
[null,"1. Budget de l’ensemble",null,null,"Coût total de l’ensemble","Par logement",null,null,"Proportion des coûts de l’ensemble"]
[null,"Coûts essentiels",null,null,null,{"$f":"IF($E$23=0,0,E26/$E$23)","v":0},null,null,{"$f":"E26*I$22","v":0},null,{"$f":"E26*K$22","v":0},{"$f":"SUM(I26:K26)","v":0}]
[null,"Coûts accessoires",null,null,null,{"$f":"IF($E$23=0,0,E27/$E$23)","v":0},null,null,0,null,0,0]
[null,"Coûts de financement",null,null,null,0,null,null,0,null,0,0]
[null,"TVH",null,null,null,0,null,null,0,null,0,0]
[null,"Divers et marge de manœuvre",null,null,null,0,null,null,0,null,0,0]
[null,"Charges existantes",null,null,null,0,null,null,0,null,0,0]
[null,"Autre (décrire)",null,null,null,0,null,null,0,null,0,0]
[null,"Autre (décrire)",null,null,null,0,null,null,0,null,0,0]
[null,"Budget total (utilisations)",null,null,{"$f":"SUM(E26:E33)","v":0},0,null,null,{"$f":"SUM(I26:I33)","v":0},null,{"$f":"SUM(K26:K33)","v":0},0]
[]
[null,"Sources de financement"]
[null,"Autre financement par emprunt (hors FNCIL)",null,null,null,{"$f":"IF($E$23=0,0,E37/$E$23)","v":0},null,null,null,null,null,{"$f":"E37","v":0}]
[null,"Contribution du FNCIL (Vous référer au fichier sur l’Admissibilité à une contribution pour déterminer à quel montant vous pourriez avoir droit)",null,null,null,{"$f":"IF($E$23=0,0,E38/$E$23)","v":0},null,null,{"$f":"E38*I22","v":0},null,{"$f":"E38*K22","v":0},{"$f":"E38","v":0}]
[null,"          Autres subventions et contributions    ",null,null,null,0,null,null,null,null,null,0]
[null,"Mise de fonds en argent du propriétaire",null,null,null,0,null,null,null,null,null,0]
[null,"Autre (décrire)",null,null,null,0,null,null,null,null,null,0]
[null,"Autre (décrire)",null,null,null,0,null,null,null,null,null,0]
[null,"Autre (Exonération de droits d’aménagement)",null,null,null,0,null,null,null,null,null,0]
[null,"Financement initial de la SCHL",null,null,null,0,null,null,null,null,null,0]
[null,"Total – Autres sources",null,null,{"$f":"SUM(E37:E44)","v":0},{"$f":"IF($E$23=0,0,E45/$E$23)","v":0},null,null,null,null,null,{"$f":"SUM(L37:L44)","v":0}]
[]
[null,"Prêt du FNCIL demandé/nécessaire",null,null,{"$f":"E34-E45","v":0},{"$f":"IF($E$23=0,0,E47/$E$23)","v":0},null,null,null,null,null,{"$f":"Résidentiel!C7","v":0},"Prêt du FNCIL recommandé"]
[]
[null,"Total- Sources de financement",null,null,{"$f":"E45+E47","v":0},{"$f":"IF($E$23=0,0,E49/$E$23)","v":0},null,null,null,null,null,{"$f":"SUM(L45:L48)","v":0}]
[]
[null,null,null,null,null,null,null,null,null,null,null,{"$f":"L34-L49","v":0},"Financement supplémentaire nécessaire"]
[]
[null,null,null,null,null,null,null,null,"Total des sources recommandées",null,null,{"$f":"SUM(L49:L52)","v":0}]

{"sheet":"Résidentiel","index":3,"n_rows":110,"n_cols":11,"rows_kept":110,"cut":false,"hidden":false,"merged":[[94,8,94,9],[37,8,37,9],[38,8,38,9],[10,6,11,10]]}
[null,"RÉSUMÉ"]
[null,null,null,null,null,null,"Investissement maximal du FNCIL (en pourcentage des coûts admissibles)"]
[null,"Coût de l’ensemble",{"$f":"'Budget de l’ensemble'!E34","v":0},null,null,null,null,null,null,"Financement total","Contribution"]
[null,null,null,null,null,null,null,null,null,"jusqu’à","jusqu’à"]
[null,null,"Investissement du FNCIL","% du coût","Par logement",null,"Coopératives, OSBL, Groupes Autochtones",null,null,0.95,0.4]
[null,"Contribution du FNCIL",{"$f":"'Budget de l’ensemble'!L38","v":0},{"$f":"IF(C6=0,0,C6/$C$3)","v":0},{"$f":"IF(C6=0,0,C6/$C$21)","v":0},null,"Province/territoire, municipalité",null,null,0.75,0.3]
[null,"Prêt du FNCIL",{"$f":"IF(G101=0,0,G101+'Non résidentiel'!G67)","v":0},{"$f":"IF(C7=0,0,C7/$C$3)","v":0},{"$f":"IF(C7=0,0,C7/$C$21)","v":0},null,"À but lucratif (secteur privé)",null,null,0.75,0.15]
[null,"Investissement total du FNCIL",{"$f":"SUM(C6:C7)","v":0},{"$f":"IF(C8=0,0,C8/$C$3)","v":0}]
[null,null,null,null,null,null,"Remarque: "]
[null,"L’investissement du FNCIL respecte l’admissibilité maximale.",{"$f":"IF(D8<=D18,\"OUI\",\"NON\")","v":"OUI"},null,null,null,"i) L’investissement du FNCIL est limité à 75 % du coût du volet non résidentiel."]
[null,"La contribution du FNCIL respecte l’admissibilité maximale.",{"$f":"IF(D6<=E18,\"OUI\",\"NON\")","v":"OUI"},null,null,null,"ii) Réparation (renouvellement) d’immeubles existants : l’investissement du FNCIL est limité à 85 % de la valeur d’emprunt (valeur marchande). "]
[null,"CCD de l’ensemble (tous les paiements de dettes)",{"$f":"IF(G103+G96+'Non résidentiel'!G69=0,0,(G84+'Non résidentiel'!G52)/(G103+G96+'Non résidentiel'!G69))","v":0}]
[null,"Capitaux et financement supplémentaires requis",{"$f":"C36-C7","v":0}]
[]
["Remarque : Ne remplir que les champs pertinents en JAUNE. "]
[null,"Portion résidentielle, logements existants: Évaluation de la viabilité financière"]
[null,null,"Admissibilité","Financ. maximal","Contrib. maximale"]
[null,"Type de proposant (choisir)",null,{"$f":"IF(C18=\"À but lucratif (secteur privé)\",J7,IF(C18=G6,J6,J5))","v":0.95},{"$f":"IF(C18=\"À but lucratif (secteur privé)\",K7,IF(C18=G6,K6,K5))","v":0.4}]
[]
[null,"Pourcentage du coût de l’ensemble pour les logements",{"$f":"'Budget de l’ensemble'!I22","v":0}]
[null,"Nombre d’unités résidentielles",{"$f":"'Abordabilité des loyers'!D22","v":0}]
[]
[null,"1. Budget de l’ensemble"]
[null,null,null,"Par logement","Logements locatifs neufs"]
[null,"Coûts essentiels",null,{"$f":"IF($C$21=0,0,E25/$C$21)","v":0},{"$f":"C$20*'Budget de l’ensemble'!E26","v":0}]
[null,"Coûts accessoires",null,{"$f":"IF($C$21=0,0,E26/$C$21)","v":0},{"$f":"C$20*'Budget de l’ensemble'!E27","v":0}]
[null,"Coûts de financement",null,0,{"$f":"C$20*'Budget de l’ensemble'!E28","v":0}]
[null,"TVH",null,0,{"$f":"C$20*'Budget de l’ensemble'!E29","v":0}]
[null,"Divers et marge de manœuvre",null,0,{"$f":"C$20*'Budget de l’ensemble'!E30","v":0}]
[null,"Dettes existantes",null,0,{"$f":"C$20*'Budget de l’ensemble'!E31","v":0}]
[null,{"$f":"'Budget de l’ensemble'!B32","v":"Autre (décrire)"},null,0,{"$f":"C$20*'Budget de l’ensemble'!E32","v":0}]
[null,{"$f":"'Budget de l’ensemble'!B33","v":"Autre (décrire)"},null,0,{"$f":"C$20*'Budget de l’ensemble'!E33","v":0}]
[null,"Budget total (utilisations)",null,0,{"$f":"SUM(E25:E32)","v":0}]
[]
[null,"Prêt maximal selon l’admissibilité maximale",{"$f":"D18*E33-'Budget de l’ensemble'!I38","v":0},"Proportion des coûts * Financement max. MOINS proportion de la contribution."]
[null,"Prêt du FNCIL demandé/nécessaire",{"$f":"'Budget de l’ensemble'!E47","v":0}]
[]
[null,"2. Analyse du revenu – Portion résidentielle"]
[null,null,null,null,null,null,"RBP pro forma"]
[null,"Revenu brut possible (tiré de l’onglet Abordabilité des loyers)",null,null,null,null,{"$f":"'Abordabilité des loyers'!I22","v":0}]
[null,"Taux d’inoccupation/mauvaises créances"]
[null,"Moins : Taux d’inoccupation/mauvaises créances",null,null,null,null,{"$f":"G40*G41","v":0}]
[null,"Revenu brut réel – Portion résidentielle",null,null,null,null,{"$f":"G40-G42","v":0}]
[]
[null,"3. Revenus accessoires"]
[null,null,"Nombre","Loyer"]
[null,"Stationnement (mois)",null,null,null,null,{"$f":"D47*C47*12","v":0}]
[null,"Espaces d’entreposage (mois)",null,null,null,null,{"$f":"D48*C48*12","v":0}]
[null,"Buanderie (année)"]
[null,"Total",null,null,null,null,{"$f":"G47+G48+G49","v":0}]
[null,"Taux d’inoccupation/mauvaises créances (%)"]
[null,"Moins : Taux d’inoccupation/mauvaises créances",null,null,null,null,{"$f":"G51*G50","v":0}]
[null,"Revenu brut réel",null,null,null,null,{"$f":"G50-G52","v":0}]
[]
[null,"4. Autres revenus (annuels)"]
[null,"Subventions de fonctionnement (municipal, provincial/territorial, fédéral)"]
[null,"Autre (décrire)"]
[null,"Autre (décrire)"]
[null,"Total partiel",null,null,null,null,{"$f":"SUM(G56:G58)","v":0}]
[null,"Taux d’inoccupation/mauvaises créances (%)"]
[null,"Moins : Taux d’inoccupation/mauvaises créances",null,null,null,null,{"$f":"G60*G59","v":0}]
[null,"Revenu brut réel",null,null,null,null,{"$f":"G59-G61","v":0}]
[]
[null,"Revenu brut réel total",null,null,null,null,{"$f":"G43+G53+G62","v":0}]
[]
[null,"5. Coût de fonctionnement"]
[null,null,null,null,null,"Par log./an","Annuel"]
[null,"Impôts fonciers",null,null,null,{"$f":"IF($C$21=0,0,G68/$C$21)","v":0}]
[null,"Assurance",null,null,null,{"$f":"IF($C$21=0,0,G69/$C$21)","v":0}]
[null,"Chauffage",null,null,null,null,{"$f":"F70*$C$21","v":0}]
[null,"Électricité",null,null,null,null,{"$f":"F71*$C$21","v":0}]
[null,"Eau",null,null,null,null,{"$f":"F72*$C$21","v":0}]
[null,"Total des coûts des services publics",null,null,null,{"$f":"IF($C$21=0,0,G73/$C$21)","v":0},{"$f":"SUM(G70:G72)","v":0}]
[null,"Réparations et entretien",null,null,null,null,{"$f":"F74*$C$21","v":0}]
[null,"Salaire – Surintendant",null,null,null,null,0]
[null,"Autre (décrire)",null,null,null,null,0]
[null,"Autre (décrire)",null,null,null,null,0]
[null,"Autre (décrire)",null,null,null,null,0]
[null,"Réserve de remplacement (obligatoire)",null,null,null,null,0]
[null,"Honoraires de gestion (%)",null,null,null,null,{"$f":"F80*G64","v":0}]
[null,"Frais généraux et d’administration (%)",null,null,null,null,{"$f":"F81*G64","v":0}]
[null,"Frais d'exploitation total",null,null,null,{"$f":"IF($C$21=0,0,G82/$C$21)","v":0},{"$f":"SUM(G68:G72,G74:G81)","v":0},null,"Ratio des frais d'exploitation",null,{"$f":"IF(G64=0,0,G82/G64)","v":0}]
[]
[null,"Revenu net d’exploitation (RNE)",null,null,null,null,{"$f":"G64-G82","v":0}]
[]
[null,"Valeur (évaluée) de la propriété",null,null,0,null,{"$f":"IF(E86=0,0,ROUND(E86,-3))","v":0}]
[null,"Dette existante prioritaire par rapport au prêt du FNCIL"]
[null,"Prêt maximal du FNCIL – RPV de 85 % (combiné à toute dette existante)",null,null,null,null,{"$f":"(0.85*G86)-G87","v":0}]
[]
[null,"6. Prêt du FNCIL – CCD et calcul du rapport"]
[null,"Prêt du FNCIL (le moindre de: «financement maximal» OU «prêt demandé/nécessaire» OU «RPV de 85 %»)",null,null,null,null,{"$f":"MIN(C35,C36,G88)","v":0}]
[null,"Taux d’intérêt (communiquer avec la SCHL pour obtenir les renseignements sur les taux d’emprunt en vigueur)"]
[null,"Période d’amortissement du prêt (années)",null,null,null,null,null,null,"Remarque: La période d'amortissement du prêt ne doit pas dépasser 40 années"]
[null,"Versement hypothécaire (mensuel) C+I du prêt du FNCIL",null,null,null,null,{"$f":"IF(G91=0, 0, IF(G93=0,0, -PMT((((G92/2)+1)^(1/6))-1, G93*12, G91, 0, 0)))","v":0}]
[null,"Versement hypothécaire (annuel) C+I du prêt du FNCIL",null,null,null,null,{"$f":"G94*12","v":0}]
[null,"Autre versement hypothécaire (annuel) C+I"]
[null,"Total des versements hypothécaires (prêt du FNCIL + autre)",null,null,null,null,{"$f":"SUM(G95:G96)","v":0}]
[null,"Coefficient de couverture de la dette (CCD) – Prêt du FNCIL demandé/nécessaire  ",null,null,null,null,{"$f":"IF(G95=0, 0, ROUND(G84/(G95+G96),2))","v":0}]
["     Prêt maximal au CCD minimal",null,null,null,"CCD minimal",1,{"$f":"IF(G$91=0,0,IF(G93=0,0,(((G84-G96)/F$99/12)/(((1+((G92*100)/200))^(1/6)-1)/(1-((1+(G92*100)/200)^(1/6))^(-12*G93))))))","v":0}]
[]
[null,"Prêt du FNCIL recommandé – Portion résidentielle",null,null,null,null,{"$f":"MIN(G91,G99)","v":0}]
[null,"Versement hypothécaire (mensuel) C+I",null,null,null,null,{"$f":"IF(G101=0, 0, -PMT((((G92/2)+1)^(1/6))-1, G93*12, G101, 0, 0))","v":0}]
[null,"Versement hypothécaire (annuel) C+I",null,null,null,null,{"$f":"G102*12","v":0}]
[null,"Coefficient de couverture de la dette (CCD) – Prêt du FNCIL recommandé (sauf autres dettes)",null,null,null,null,{"$f":"IF(G103=0, 0, ROUND(G84/G103,2))","v":0}]
[]
[null,"Le prêt du FNCIL requis peut-il être soutenu?",null,null,null,null,{"$f":"IF(G101=C36,\"Oui\",IF(G101<C36,\"Non\",\"Oui\"))","v":"Oui"}]
[null,"Prêt – Prêt du FNCIL maximal (portion résidentielle)",null,null,null,null,{"$f":"G101","v":0}]
[null,"Capitaux et/ ou financement supplémentaires requis: Le prêt peut-il être soutenu par la portion non résidentielle?",null,null,null,null,{"$f":"C36-G101","v":0},null,"Aller à l’onglet Non résidentiel"]
[null,"Coût de l’ensemble – Portion résidentielle",null,null,null,null,{"$f":"E33","v":0}]
[null,"RPC du prêt du FNCIL – Portion résidentielle",null,null,null,null,{"$f":"IF(G107=0,0,G101/G109)","v":0}]

{"sheet":"Non résidentiel","index":4,"n_rows":70,"n_cols":8,"rows_kept":70,"cut":false,"hidden":false,"merged":[]}
["Remarque : Ne remplir que les champs pertinents en JAUNE. "]
[null,"Portion non résidentielle : évaluation de la viabilité financière"]
[null,null,null,null,"Vérification"]
[null,"Pourcentage du coût de l’ensemble pour la portion non résidentielle",null,{"$f":"'Budget de l’ensemble'!K22","v":0},{"$f":"E6","v":{"$error":"#DIV/0!"}},"(La portion non résidentielle ne peut dépasser 30 % du coût de l’ensemble.)"]
[null,null,null,null,{"$f":"IF(D4+Résidentiel!C20=100%,\"Oui\",\"Non\")","v":"Non"},"(Les portions résidentielle et non résidentielle égalent 100 % du coût de l’ensemble.)"]
[null,"Pourcentage de la superficie de la portion non résidentielle",null,{"$f":"'Budget de l’ensemble'!K21/'Budget de l’ensemble'!E21","v":{"$error":"#DIV/0!"}},{"$f":"IF(D6<=30%,\"Oui\",\"Non\")","v":{"$error":"#DIV/0!"}},"(La portion non résidentielle de la superficie ne peut dépasser 30 % de la superficie de l'ensemble.)"]
[]
[null,"1. Budget de l’ensemble – Portion non résidentielle"]
[null,"Coûts essentiels",{"$f":"D$4*'Budget de l’ensemble'!E26","v":0}]
[null,"Coûts accessoires",{"$f":"D$4*'Budget de l’ensemble'!E27","v":0}]
[null,"Coûts de financement",{"$f":"D$4*'Budget de l’ensemble'!E28","v":0}]
[null,"TVH",{"$f":"D$4*'Budget de l’ensemble'!E29","v":0}]
[null,"Divers et marge de manœuvre",{"$f":"D$4*'Budget de l’ensemble'!E30","v":0}]
[null,"Dette existante",{"$f":"D$4*'Budget de l’ensemble'!E31","v":0}]
[null,"Autre (décrire)",{"$f":"D$4*'Budget de l’ensemble'!E32","v":0}]
[null,"Autre (décrire)",{"$f":"D$4*'Budget de l’ensemble'!E33","v":0}]
[null,"Budget total (utilisations)",{"$f":"SUM(C9:C16)","v":0}]
[]
[null,"Prêt maximal au financement maximal",{"$f":"(C17*75%)-'Budget de l’ensemble'!K38","v":0},"Moins proportion de la contribution."]
[null,"Prêt additionnel requis",{"$f":"Résidentiel!G108","v":0}]
[]
[]
[null,"2. Non résidentiel/commercial"]
[null,null,null,"Superficie (pi²)","Nombre d'unités","Loyer mensuel","Annuel"]
[null,"Commerce/bureau 1",null,null,null,null,{"$f":"E25*F25*12","v":0}]
[null,"Commerce/bureau 2",null,null,null,null,{"$f":"E26*F26*12","v":0}]
[null,"Commerce/bureau 3",null,null,null,null,{"$f":"E27*F27*12","v":0}]
[null,"Commerce/bureau 4",null,null,null,null,{"$f":"E28*F28*12","v":0}]
[null,"Ajouter : recouvrements"]
[null,"Total",null,{"$f":"SUM(D25:D28)","v":0},{"$f":"SUM(E25:E28)","v":0},null,{"$f":"SUM(G25:G29)","v":0}]
[null,"Taux d’inoccupation/mauvaises créances"]
[null,"Moins : Taux d’inoccupation/mauvaises créances",null,null,null,null,{"$f":"G31*G30","v":0}]
[null,"Revenu brut réel",null,null,null,null,{"$f":"G30-G32","v":0}]
[]
[null,"3. Coût de fonctionnement"]
[null,null,null,null,null,null,"Annuel"]
[null,"Impôts fonciers"]
[null,"Assurance"]
[null,"   Chauffage"]
[null,"   Électricité"]
[null,"   Eau"]
[null,"Total des coûts des services publics",null,null,null,null,{"$f":"SUM(G39:G41)","v":0}]
[null,"Réparations et entretien"]
[null,"Salaire – Surintendant"]
[null,"Autre (décrire)"]
[null,"Autre (décrire)"]
[null,"Autre (décrire)"]
[null,"Honoraires de gestion (%)",null,null,null,null,{"$f":"F48*$G$33","v":0}]
[null,"Frais généraux et d’administration (%)",null,null,null,null,{"$f":"F49*$G$33","v":0}]
[null,"Frais d'exploitation total",null,null,null,null,{"$f":"SUM(G37:G41,G43:G49)","v":0}]
[]
[null,"Revenu net d’exploitation (RNE)",null,null,null,null,{"$f":"G33-G50","v":0}]
[]
[null,"Valeur d’emprunt (RNE/taux de capitalisation)","Taux de capitalisation",null,null,null,{"$f":"IF(E54=0,0,ROUND(G52/E54,-4))","v":0}]
[null,"Dette existante prioritaire par rapport au prêt du FNCIL"]
[null,"Prêt du FNCIL maximal – RPV de 75 % (combiné à toute dette existante)",null,null,null,null,{"$f":"(0.75*G54)-G55","v":0}]
[]
[null,"4. Prêt – CCD et calcul du rapport"]
[null,"Prêt (volet non résidentiel)",null,null,null,null,{"$f":"MIN(C19,C20,G56)","v":0},"Moindre de: RPC de 75 %, RPV de 75 % et Prêt additionnel requis"]
[null,"Taux d’intérêt",null,null,null,null,{"$f":"Résidentiel!G92","v":0}]
[null,"Période d’amortissement du prêt (années)",null,null,null,null,{"$f":"Résidentiel!G93","v":0}]
[null,"Versement hypothécaire (mensuel) C+I",null,null,null,null,{"$f":"IF(G59=0, 0, -PMT((((G60/2)+1)^(1/6))-1, G61*12, G59, 0, 0))","v":0}]
[null,"Versement hypothécaire (annuel) C+I",null,null,null,null,{"$f":"G62*12","v":0}]
[null,"Coefficient de couverture de la dette (CCD)",null,null,null,null,{"$f":"IF(G63=0, 0, G52/G63)","v":0}]
[null,"Prêt maximal au CCD minimal",null,"CCD minimal",null,1.4,{"$f":"IF(G$59=0,0,((G52/F65/12)/(((1+((G60*100)/200))^(1/6)-1)/(1-((1+(G60*100)/200)^(1/6))^(-12*G61)))))","v":0}]
[]
[null,"Prêt du FNCIL recommandé – Portion non résidentielle",null,null,null,null,{"$f":"MIN(G59,G65,C20)","v":0}]
[null,"Versement hypothécaire (mensuel) C+I",null,null,null,null,{"$f":"IF(G67=0, 0, -PMT((((G60/2)+1)^(1/6))-1, G61*12, G67, 0, 0))","v":0}]
[null,"Versement hypothécaire (annuel) C+I",null,null,null,null,{"$f":"G68*12","v":0}]
[null,"Coefficient de couverture de la dette (CCD)  – Portion non résidentielle uniquement",null,null,null,null,{"$f":"IF(G69=0, 0, ROUND(G52/G69,2))","v":0}]